Workbook

Sheet Demo stoch
A1: DEMOGRAPHIC STOCHASTICITY | E1: Definition: variation in average survivorship and reproduction
E2: that occurs because a population is made up of an integer
A3: Survival rate | B3: 0.3 | E3: number of individuals.
A4: Birth rate | B4: 0.2
N5: Simulation: 200 trials | S5: Simulation: Summary
A6: Small population (N = 10) | G6: Large population (N = 100) | N6: Small population (N = 10) | P6: Large population (N = 100) | S6: Small population (N = 10) | W6: Large population (N = 100)
A7: Individual | B7: Random # | C7: Survive? | D7: Random # | E7: Births? | G7: Individual | H7: Random # | I7: Survive? | J7: Random # | K7: Births? | M7: Trial | N7: Total survivors | O7: Total births | P7: Total survivors | Q7: Total births | S7: # Survivors | T7: Frequency | U7: # Births | V7: Frequency | W7: # Survivors | X7: Frequency | Y7: # Births | Z7: Frequency | AI7: Point #1: Demographic stochasticity results in more variation in outcomes in small populations.
A8: 1 | B8: =RAND() -> 0.2493594625 | C8: =IF(B8<$B$3,1,0) -> 1 | D8: =RAND() -> 0.3681997345 | E8: =IF(D8<$B$4,1,0) -> 0 | G8: 1 | H8: =RAND() -> 0.05344446735 | I8: =IF(H8<$B$3,1,0) -> 1 | J8: =RAND() -> 0.9378369059 | K8: =IF(J8<$B$4,1,0) -> 0 | M8: 1 | N8: 2 | O8: 1 | P8: 28 | Q8: 24 | S8: 0 | T8: =COUNTIF($N$8:$N$207,S8) -> 5 | U8: 0 | V8: =COUNTIF($O$8:$O$207,U8) -> 26 | W8: 0 | X8: =COUNTIF($P$8:$P$207,W8) -> 0 | Y8: 0 | Z8: =COUNTIF($Q$8:$Q$207,Y8) -> 0 | AI8: This effect can lead to increased extinction risk by nothing more than random chance.
A9: 2 | B9: =RAND() -> 0.4351978491 | C9: =IF(B9<$B$3,1,0) -> 0 | D9: =RAND() -> 0.905710332 | E9: =IF(D9<$B$4,1,0) -> 0 | G9: 2 | H9: =RAND() -> 0.403162718 | I9: =IF(H9<$B$3,1,0) -> 0 | J9: =RAND() -> 0.5529088884 | K9: =IF(J9<$B$4,1,0) -> 0 | M9: 2 | N9: 5 | O9: 2 | P9: 33 | Q9: 30 | S9: 1 | T9: =COUNTIF($N$8:$N$207,S9) -> 35 | U9: 1 | V9: =COUNTIF($O$8:$O$207,U9) -> 64 | W9: 1 | X9: =COUNTIF($P$8:$P$207,W9) -> 0 | Y9: 1 | Z9: =COUNTIF($Q$8:$Q$207,Y9) -> 0
A10: 3 | B10: 0.2624298771 | C10: 1 | D10: 0.1356513132 | E10: 1 | G10: 3 | H10: 0.4806543205 | I10: 0 | J10: 0.3141728648 | K10: 0 | M10: 3 | N10: 3 | O10: 2 | P10: 29 | Q10: 14 | S10: 2 | T10: 45 | U10: 2 | V10: 48 | W10: 2 | X10: 0 | Y10: 2 | Z10: 0
A11: 4 | B11: 0.9238335098 | C11: 0 | D11: 0.9833521148 | E11: 0 | G11: 4 | H11: 0.8598536361 | I11: 0 | J11: 0.2324191844 | K11: 0 | M11: 4 | N11: 3 | O11: 2 | P11: 31 | Q11: 16 | S11: 3 | T11: 58 | U11: 3 | V11: 35 | W11: 3 | X11: 0 | Y11: 3 | Z11: 0
A12: 5 | B12: 0.6937986967 | C12: 0 | D12: 0.5458475216 | E12: 0 | G12: 5 | H12: 0.03673293515 | I12: 1 | J12: 0.1969791126 | K12: 1 | M12: 5 | N12: 2 | O12: 2 | P12: 29 | Q12: 9 | S12: 4 | T12: 32 | U12: 4 | V12: 21 | W12: 4 | X12: 0 | Y12: 4 | Z12: 0
A13: 6 | B13: 0.464229102 | C13: 0 | D13: 0.06373401596 | E13: 1 | G13: 6 | H13: 0.09755851926 | I13: 1 | J13: 0.3702410658 | K13: 0 | M13: 6 | N13: 3 | O13: 1 | P13: 40 | Q13: 19 | S13: 5 | T13: 16 | U13: 5 | V13: 5 | W13: 5 | X13: 0 | Y13: 5 | Z13: 0
A14: 7 | B14: 0.7350130902 | C14: 0 | D14: 0.4692059129 | E14: 0 | G14: 7 | H14: 0.2878753794 | I14: 1 | J14: 0.609219901 | K14: 0 | M14: 7 | N14: 1 | O14: 2 | P14: 36 | Q14: 19 | S14: 6 | T14: 5 | U14: 6 | V14: 1 | W14: 6 | X14: 0 | Y14: 6 | Z14: 0
A15: 8 | B15: 0.3705349411 | C15: 0 | D15: 0.09315620128 | E15: 1 | G15: 8 | H15: 0.053655633 | I15: 1 | J15: 0.2861084821 | K15: 0 | M15: 8 | N15: 3 | O15: 3 | P15: 25 | Q15: 16 | S15: 7 | T15: 4 | U15: 7 | V15: 0 | W15: 7 | X15: 0 | Y15: 7 | Z15: 0
A16: 9 | B16: 0.2781148242 | C16: 1 | D16: 0.07182663799 | E16: 1 | G16: 9 | H16: 0.9714540117 | I16: 0 | J16: 0.2176349148 | K16: 0 | M16: 9 | N16: 1 | O16: 1 | P16: 28 | Q16: 17 | S16: 8 | T16: 0 | U16: 8 | V16: 0 | W16: 8 | X16: 0 | Y16: 8 | Z16: 0
A17: 10 | B17: 0.3775002624 | C17: 0 | D17: 0.6383594629 | E17: 0 | G17: 10 | H17: 0.9518158794 | I17: 0 | J17: 0.08739508631 | K17: 1 | M17: 10 | N17: 5 | O17: 1 | P17: 35 | Q17: 22 | S17: 9 | T17: 0 | U17: 9 | V17: 0 | W17: 9 | X17: 0 | Y17: 9 | Z17: 2
D18: Survivors | E18: Births | G18: 11 | H18: 0.2119516958 | I18: 1 | J18: 0.9395174277 | K18: 0 | M18: 11 | N18: 5 | O18: 2 | P18: 30 | Q18: 20 | S18: 10 | T18: 0 | U18: 10 | V18: 0 | W18: 10 | X18: 0 | Y18: 10 | Z18: 2
C19: Totals | D19: =SUM(C8:C17) -> 3 | E19: =SUM(E8:E17) -> 4 | G19: 12 | H19: 0.1703076469 | I19: 1 | J19: 0.6606124436 | K19: 0 | M19: 12 | N19: 6 | O19: 3 | P19: 37 | Q19: 24 | W19: 11 | X19: 0 | Y19: 11 | Z19: 2
G20: 13 | H20: 0.3885581326 | I20: 0 | J20: 0.7551193455 | K20: 0 | M20: 13 | N20: 6 | O20: 0 | P20: 25 | Q20: 27 | S20: Probability | W20: 12 | X20: 0 | Y20: 12 | Z20: 4
G21: 14 | H21: 0.6408381667 | I21: 0 | J21: 0.6567867017 | K21: 0 | M21: 14 | N21: 4 | O21: 2 | P21: 28 | Q21: 32 | S21: 0 | T21: =T8/200 -> 0.025 | W21: 13 | X21: 0 | Y21: 13 | Z21: 5
G22: 15 | H22: 0.4102226295 | I22: 0 | J22: 0.1335386844 | K22: 1 | M22: 15 | N22: 4 | O22: 1 | P22: 26 | Q22: 16 | S22: 1 | T22: =T9/200 -> 0.175 | W22: 14 | X22: 0 | Y22: 14 | Z22: 8
G23: 16 | H23: 0.1484230321 | I23: 1 | J23: 0.1797859502 | K23: 1 | M23: 16 | N23: 1 | O23: 4 | P23: 28 | Q23: 20 | S23: 2 | T23: 0.225 | W23: 15 | X23: 0 | Y23: 15 | Z23: 5
G24: 17 | H24: 0.1970874432 | I24: 1 | J24: 0.9122206204 | K24: 0 | M24: 17 | N24: 5 | O24: 2 | P24: 34 | Q24: 12 | S24: 3 | T24: 0.29 | W24: 16 | X24: 1 | Y24: 16 | Z24: 16
G25: 18 | H25: 0.9140969625 | I25: 0 | J25: 0.1403979216 | K25: 1 | M25: 18 | N25: 4 | O25: 4 | P25: 27 | Q25: 22 | S25: 4 | T25: 0.16 | W25: 17 | X25: 0 | Y25: 17 | Z25: 14
G26: 19 | H26: 0.254409034 | I26: 1 | J26: 0.3089434125 | K26: 0 | M26: 19 | N26: 1 | O26: 3 | P26: 29 | Q26: 14 | S26: 5 | T26: 0.08 | W26: 18 | X26: 1 | Y26: 18 | Z26: 20
G27: 20 | H27: 0.153340253 | I27: 1 | J27: 0.1911124901 | K27: 1 | M27: 20 | N27: 2 | O27: 4 | P27: 25 | Q27: 13 | S27: 6 | T27: 0.025 | W27: 19 | X27: 0 | Y27: 19 | Z27: 15
G28: 21 | H28: 0.2308973193 | I28: 1 | J28: 0.6534468179 | K28: 0 | M28: 21 | N28: 2 | O28: 1 | P28: 34 | Q28: 14 | S28: 7 | T28: 0.02 | W28: 20 | X28: 0 | Y28: 20 | Z28: 15
G29: 22 | H29: 0.671512613 | I29: 0 | J29: 0.993688821 | K29: 0 | M29: 22 | N29: 1 | O29: 1 | P29: 30 | Q29: 24 | S29: 8 | T29: 0 | W29: 21 | X29: 2 | Y29: 21 | Z29: 17
G30: 23 | H30: 0.6379033263 | I30: 0 | J30: 0.33039277 | K30: 0 | M30: 23 | N30: 3 | O30: 1 | P30: 28 | Q30: 22 | S30: 9 | T30: 0 | W30: 22 | X30: 6 | Y30: 22 | Z30: 16
G31: 24 | H31: 0.9622423476 | I31: 0 | J31: 0.1121237013 | K31: 1 | M31: 24 | N31: 3 | O31: 1 | P31: 31 | Q31: 19 | S31: 10 | T31: 0 | W31: 23 | X31: 3 | Y31: 23 | Z31: 15
G32: 25 | H32: 0.6446640755 | I32: 0 | J32: 0.8087739774 | K32: 0 | M32: 25 | N32: 3 | O32: 4 | P32: 37 | Q32: 19 | W32: 24 | X32: 6 | Y32: 24 | Z32: 18
G33: 26 | H33: 0.8129940027 | I33: 0 | J33: 0.2091200974 | K33: 0 | M33: 26 | N33: 4 | O33: 1 | P33: 26 | Q33: 18 | S33: Binomial | W33: 25 | X33: 13 | Y33: 25 | Z33: 10
G34: 27 | H34: 0.6116620451 | I34: 0 | J34: 0.618462933 | K34: 0 | M34: 27 | N34: 3 | O34: 1 | P34: 25 | Q34: 24 | S34: # trials | T34: 10 | W34: 26 | X34: 11 | Y34: 26 | Z34: 7
G35: 28 | H35: 0.894890392 | I35: 0 | J35: 0.7460038033 | K35: 0 | M35: 28 | N35: 2 | O35: 4 | P35: 35 | Q35: 24 | S35: prob. success | T35: =B3 -> 0.3 | W35: 27 | X35: 10 | Y35: 27 | Z35: 6
G36: 29 | H36: 0.4052930408 | I36: 0 | J36: 0.6376635809 | K36: 0 | M36: 29 | N36: 3 | O36: 2 | P36: 26 | Q36: 25 | W36: 28 | X36: 16 | Y36: 28 | Z36: 1
G37: 30 | H37: 0.3803622082 | I37: 0 | J37: 0.9678435146 | K37: 0 | M37: 30 | N37: 7 | O37: 2 | P37: 33 | Q37: 20 | S37: 0 | T37: =BINOMDIST(S37,$T$34,$T$35,FALSE) -> 0.0282475249 | W37: 29 | X37: 21 | Y37: 29 | Z37: 0
G38: 31 | H38: 0.001848130199 | I38: 1 | J38: 0.3549553252 | K38: 0 | M38: 31 | N38: 2 | O38: 1 | P38: 37 | Q38: 27 | S38: 1 | T38: =BINOMDIST(S38,$T$34,$T$35,FALSE) -> 0.121060821 | W38: 30 | X38: 15 | Y38: 30 | Z38: 1
G39: 32 | H39: 0.6448564065 | I39: 0 | J39: 0.252922446 | K39: 0 | M39: 32 | N39: 4 | O39: 1 | P39: 21 | Q39: 16 | S39: 2 | T39: 0.2334744405 | W39: 31 | X39: 17 | Y39: 31 | Z39: 0
G40: 33 | H40: 0.735890281 | I40: 0 | J40: 0.3091626625 | K40: 0 | M40: 33 | N40: 6 | O40: 2 | P40: 25 | Q40: 26 | S40: 3 | T40: 0.266827932 | W40: 32 | X40: 6 | Y40: 32 | Z40: 1
G41: 34 | H41: 0.7287164264 | I41: 0 | J41: 0.6908678983 | K41: 0 | M41: 34 | N41: 1 | O41: 2 | P41: 31 | Q41: 16 | S41: 4 | T41: 0.200120949 | W41: 33 | X41: 21 | Y41: 33 | Z41: 0
G42: 35 | H42: 0.9218960541 | I42: 0 | J42: 0.963653814 | K42: 0 | M42: 35 | N42: 2 | O42: 1 | P42: 31 | Q42: 19 | S42: 5 | T42: 0.1029193452 | W42: 34 | X42: 18 | Y42: 34 | Z42: 0
G43: 36 | H43: 0.3990968953 | I43: 0 | J43: 0.4958358014 | K43: 0 | M43: 36 | N43: 4 | O43: 3 | P43: 26 | Q43: 25 | S43: 6 | T43: 0.036756909 | W43: 35 | X43: 8 | Y43: 35 | Z43: 0
G44: 37 | H44: 0.9349976658 | I44: 0 | J44: 0.4837043109 | K44: 0 | M44: 37 | N44: 5 | O44: 1 | P44: 27 | Q44: 13 | S44: 7 | T44: 0.009001692 | W44: 36 | X44: 6 | Y44: 36 | Z44: 0
G45: 38 | H45: 0.5680253677 | I45: 0 | J45: 0.232349132 | K45: 0 | M45: 38 | N45: 4 | O45: 1 | P45: 38 | Q45: 23 | S45: 8 | T45: 0.0014467005 | W45: 37 | X45: 10 | Y45: 37 | Z45: 0
G46: 39 | H46: 0.2416515665 | I46: 1 | J46: 0.394080398 | K46: 0 | M46: 39 | N46: 1 | O46: 3 | P46: 28 | Q46: 15 | S46: 9 | T46: 0.000137781 | W46: 38 | X46: 4 | Y46: 38 | Z46: 0
G47: 40 | H47: 0.9448855841 | I47: 0 | J47: 0.3968123002 | K47: 0 | M47: 40 | N47: 2 | O47: 1 | P47: 30 | Q47: 19 | S47: 10 | T47: 5.9049e-06 | W47: 39 | X47: 0 | Y47: 39 | Z47: 0
G48: 41 | H48: 0.5283561233 | I48: 0 | J48: 0.07396070923 | K48: 1 | M48: 41 | N48: 0 | O48: 1 | P48: 34 | Q48: 27 | W48: 40 | X48: 1 | Y48: 40 | Z48: 0
G49: 42 | H49: 0.4902393628 | I49: 0 | J49: 0.8174156184 | K49: 0 | M49: 42 | N49: 1 | O49: 2 | P49: 21 | Q49: 18 | W49: 41 | X49: 2 | Y49: 41 | Z49: 0
G50: 43 | H50: 0.3978032566 | I50: 0 | J50: 0.5034751096 | K50: 0 | M50: 43 | N50: 1 | O50: 3 | P50: 31 | Q50: 21 | W50: 42 | X50: 1 | Y50: 42 | Z50: 0
G51: 44 | H51: 0.1711924703 | I51: 1 | J51: 0.3463356566 | K51: 0 | M51: 44 | N51: 1 | O51: 4 | P51: 34 | Q51: 22 | W51: 43 | X51: 1 | Y51: 43 | Z51: 0
G52: 45 | H52: 0.7356787346 | I52: 0 | J52: 0.8709664558 | K52: 0 | M52: 45 | N52: 2 | O52: 1 | P52: 31 | Q52: 18 | W52: 44 | X52: 0 | Y52: 44 | Z52: 0
G53: 46 | H53: 0.9402904758 | I53: 0 | J53: 0.3398120071 | K53: 0 | M53: 46 | N53: 2 | O53: 3 | P53: 34 | Q53: 21 | W53: 45 | X53: 0 | Y53: 45 | Z53: 0 | AI53: Point #2: The binomial distribution can be used instead of simulations to estimate outcomes.
G54: 47 | H54: 0.6007404538 | I54: 0 | J54: 0.2951519091 | K54: 0 | M54: 47 | N54: 3 | O54: 4 | P54: 32 | Q54: 25 | W54: 46 | X54: 0 | Y54: 46 | Z54: 0 | AI54: This can be very handy for more sophistocated modeling.
G55: 48 | H55: 0.5691115093 | I55: 0 | J55: 0.7254085155 | K55: 0 | M55: 48 | N55: 3 | O55: 0 | P55: 35 | Q55: 23 | W55: 47 | X55: 0 | Y55: 47 | Z55: 0
G56: 49 | H56: 0.4962688159 | I56: 0 | J56: 0.3084571394 | K56: 0 | M56: 49 | N56: 1 | O56: 2 | P56: 29 | Q56: 24 | W56: 48 | X56: 0 | Y56: 48 | Z56: 0
G57: 50 | H57: 0.7062731522 | I57: 0 | J57: 0.4269167398 | K57: 0 | M57: 50 | N57: 4 | O57: 3 | P57: 35 | Q57: 24 | W57: 49 | X57: 0 | Y57: 49 | Z57: 0
G58: 51 | H58: 0.3996496277 | I58: 0 | J58: 0.5121985252 | K58: 0 | M58: 51 | N58: 1 | O58: 5 | P58: 29 | Q58: 12 | W58: 50 | X58: 0 | Y58: 50 | Z58: 0
G59: 52 | H59: 0.1976555428 | I59: 1 | J59: 0.2304097141 | K59: 0 | M59: 52 | N59: 1 | O59: 1 | P59: 36 | Q59: 17 | W59: 51 | X59: 0 | Y59: 51 | Z59: 0
G60: 53 | H60: 0.6508899601 | I60: 0 | J60: 0.7579594443 | K60: 0 | M60: 53 | N60: 3 | O60: 1 | P60: 31 | Q60: 21 | W60: 52 | X60: 0 | Y60: 52 | Z60: 0
G61: 54 | H61: 0.8287580211 | I61: 0 | J61: 0.7711965343 | K61: 0 | M61: 54 | N61: 3 | O61: 2 | P61: 27 | Q61: 26 | W61: 53 | X61: 0 | Y61: 53 | Z61: 0
G62: 55 | H62: 0.6844373409 | I62: 0 | J62: 0.1693874217 | K62: 1 | M62: 55 | N62: 5 | O62: 1 | P62: 34 | Q62: 21 | W62: 54 | X62: 0 | Y62: 54 | Z62: 0
G63: 56 | H63: 0.3392764191 | I63: 0 | J63: 0.1648198772 | K63: 1 | M63: 56 | N63: 2 | O63: 0 | P63: 27 | Q63: 21 | W63: 55 | X63: 0 | Y63: 55 | Z63: 0
G64: 57 | H64: 0.4094817053 | I64: 0 | J64: 0.7992497158 | K64: 0 | M64: 57 | N64: 4 | O64: 3 | P64: 34 | Q64: 15 | W64: 56 | X64: 0 | Y64: 56 | Z64: 0
G65: 58 | H65: 0.2255504962 | I65: 1 | J65: 0.6103091722 | K65: 0 | M65: 58 | N65: 2 | O65: 1 | P65: 31 | Q65: 17 | W65: 57 | X65: 0 | Y65: 57 | Z65: 0
G66: 59 | H66: 0.1632505836 | I66: 1 | J66: 0.2727986211 | K66: 0 | M66: 59 | N66: 5 | O66: 0 | P66: 25 | Q66: 16 | W66: 58 | X66: 0 | Y66: 58 | Z66: 0
G67: 60 | H67: 0.4239769835 | I67: 0 | J67: 0.6686956843 | K67: 0 | M67: 60 | N67: 4 | O67: 1 | P67: 31 | Q67: 18 | W67: 59 | X67: 0 | Y67: 59 | Z67: 0
G68: 61 | H68: 0.9642279339 | I68: 0 | J68: 0.5237325729 | K68: 0 | M68: 61 | N68: 4 | O68: 5 | P68: 33 | Q68: 12 | W68: 60 | X68: 0 | Y68: 60 | Z68: 0
G69: 62 | H69: 0.3874563877 | I69: 0 | J69: 0.6926561466 | K69: 0 | M69: 62 | N69: 3 | O69: 3 | P69: 25 | Q69: 24 | W69: 61 | X69: 0 | Y69: 61 | Z69: 0
G70: 63 | H70: 0.4137767278 | I70: 0 | J70: 0.3671401243 | K70: 0 | M70: 63 | N70: 3 | O70: 3 | P70: 29 | Q70: 14 | W70: 62 | X70: 0 | Y70: 62 | Z70: 0
G71: 64 | H71: 0.4831372329 | I71: 0 | J71: 0.5548192728 | K71: 0 | M71: 64 | N71: 2 | O71: 1 | P71: 37 | Q71: 22 | W71: 63 | X71: 0 | Y71: 63 | Z71: 0
G72: 65 | H72: 0.4333393825 | I72: 0 | J72: 0.6205513848 | K72: 0 | M72: 65 | N72: 4 | O72: 3 | P72: 35 | Q72: 23 | W72: 64 | X72: 0 | Y72: 64 | Z72: 0
G73: 66 | H73: =RAND() -> 0.3196352783 | I73: =IF(H73<$B$3,1,0) -> 0 | J73: =RAND() -> 0.9536221157 | K73: =IF(J73<$B$4,1,0) -> 0 | M73: 66 | N73: 5 | O73: 2 | P73: 24 | Q73: 23 | W73: 65 | X73: =COUNTIF($P$8:$P$207,W73) -> 0 | Y73: 65 | Z73: =COUNTIF($Q$8:$Q$207,Y73) -> 0
G74: 67 | H74: 0.3185527633 | I74: 0 | J74: 0.8275492745 | K74: 0 | M74: 67 | N74: 6 | O74: 3 | P74: 22 | Q74: 12 | W74: 66 | X74: 0 | Y74: 66 | Z74: 0
G75: 68 | H75: 0.6717431784 | I75: 0 | J75: 0.5110512406 | K75: 0 | M75: 68 | N75: 3 | O75: 0 | P75: 34 | Q75: 23 | W75: 67 | X75: 0 | Y75: 67 | Z75: 0
G76: 69 | H76: 0.4732639564 | I76: 0 | J76: 0.9824425898 | K76: 0 | M76: 69 | N76: 3 | O76: 2 | P76: 33 | Q76: 17 | W76: 68 | X76: 0 | Y76: 68 | Z76: 0
G77: 70 | H77: 0.9714602432 | I77: 0 | J77: 0.1807446727 | K77: 1 | M77: 70 | N77: 3 | O77: 2 | P77: 38 | Q77: 13 | W77: 69 | X77: 0 | Y77: 69 | Z77: 0
G78: 71 | H78: 0.8116720871 | I78: 0 | J78: 0.1358045309 | K78: 1 | M78: 71 | N78: 6 | O78: 2 | P78: 31 | Q78: 18 | W78: 70 | X78: 0 | Y78: 70 | Z78: 0
G79: 72 | H79: 0.4541744274 | I79: 0 | J79: 0.9715135483 | K79: 0 | M79: 72 | N79: 4 | O79: 1 | P79: 23 | Q79: 18 | W79: 71 | X79: 0 | Y79: 71 | Z79: 0
G80: 73 | H80: 0.9781698399 | I80: 0 | J80: 0.2753450271 | K80: 0 | M80: 73 | N80: 2 | O80: 1 | P80: 25 | Q80: 18 | W80: 72 | X80: 0 | Y80: 72 | Z80: 0
G81: 74 | H81: 0.7595084354 | I81: 0 | J81: 0.8511806427 | K81: 0 | M81: 74 | N81: 2 | O81: 0 | P81: 29 | Q81: 24 | W81: 73 | X81: 0 | Y81: 73 | Z81: 0
G82: 75 | H82: 0.6817712497 | I82: 0 | J82: 0.1409108099 | K82: 1 | M82: 75 | N82: 4 | O82: 2 | P82: 16 | Q82: 19 | W82: 74 | X82: 0 | Y82: 74 | Z82: 0
G83: 76 | H83: 0.6929994506 | I83: 0 | J83: 0.6256604613 | K83: 0 | M83: 76 | N83: 5 | O83: 3 | P83: 37 | Q83: 21 | W83: 75 | X83: 0 | Y83: 75 | Z83: 0
G84: 77 | H84: 0.6837279683 | I84: 0 | J84: 0.9448369676 | K84: 0 | M84: 77 | N84: 7 | O84: 4 | P84: 26 | Q84: 22 | W84: 76 | X84: 0 | Y84: 76 | Z84: 0
G85: 78 | H85: 0.4587985994 | I85: 0 | J85: 0.9497660823 | K85: 0 | M85: 78 | N85: 5 | O85: 3 | P85: 33 | Q85: 28 | W85: 77 | X85: 0 | Y85: 77 | Z85: 0
G86: 79 | H86: 0.8823474885 | I86: 0 | J86: 0.08877889793 | K86: 1 | M86: 79 | N86: 3 | O86: 1 | P86: 29 | Q86: 16 | W86: 78 | X86: 0 | Y86: 78 | Z86: 0
G87: 80 | H87: 0.02254296259 | I87: 1 | J87: 0.2556038929 | K87: 0 | M87: 80 | N87: 3 | O87: 4 | P87: 33 | Q87: 16 | W87: 79 | X87: 0 | Y87: 79 | Z87: 0
G88: 81 | H88: 0.7233395235 | I88: 0 | J88: 0.3260944918 | K88: 0 | M88: 81 | N88: 2 | O88: 2 | P88: 34 | Q88: 20 | W88: 80 | X88: 0 | Y88: 80 | Z88: 0
G89: 82 | H89: 0.3323706827 | I89: 0 | J89: 0.4106832107 | K89: 0 | M89: 82 | N89: 4 | O89: 3 | P89: 27 | Q89: 20 | W89: 81 | X89: 0 | Y89: 81 | Z89: 0
G90: 83 | H90: 0.2317890751 | I90: 1 | J90: 0.571476851 | K90: 0 | M90: 83 | N90: 4 | O90: 3 | P90: 34 | Q90: 24 | W90: 82 | X90: 0 | Y90: 82 | Z90: 0
G91: 84 | H91: 0.2697003872 | I91: 1 | J91: 0.8126385073 | K91: 0 | M91: 84 | N91: 3 | O91: 2 | P91: 25 | Q91: 23 | W91: 83 | X91: 0 | Y91: 83 | Z91: 0
G92: 85 | H92: 0.8702007912 | I92: 0 | J92: 0.5905412457 | K92: 0 | M92: 85 | N92: 3 | O92: 2 | P92: 29 | Q92: 10 | W92: 84 | X92: 0 | Y92: 84 | Z92: 0
G93: 86 | H93: 0.4755962094 | I93: 0 | J93: 0.3660051832 | K93: 0 | M93: 86 | N93: 1 | O93: 3 | P93: 29 | Q93: 22 | W93: 85 | X93: 0 | Y93: 85 | Z93: 0
G94: 87 | H94: 0.7459288374 | I94: 0 | J94: 0.7087533951 | K94: 0 | M94: 87 | N94: 1 | O94: 1 | P94: 37 | Q94: 25 | W94: 86 | X94: 0 | Y94: 86 | Z94: 0
G95: 88 | H95: 0.1788743147 | I95: 1 | J95: 0.05124629801 | K95: 1 | M95: 88 | N95: 2 | O95: 1 | P95: 34 | Q95: 25 | W95: 87 | X95: 0 | Y95: 87 | Z95: 0
G96: 89 | H96: 0.7562255614 | I96: 0 | J96: 0.04788885212 | K96: 1 | M96: 89 | N96: 5 | O96: 0 | P96: 33 | Q96: 21 | W96: 88 | X96: 0 | Y96: 88 | Z96: 0
G97: 90 | H97: 0.9979465721 | I97: 0 | J97: 0.3489453146 | K97: 0 | M97: 90 | N97: 2 | O97: 4 | P97: 36 | Q97: 24 | W97: 89 | X97: 0 | Y97: 89 | Z97: 0
G98: 91 | H98: 0.2676973716 | I98: 1 | J98: 0.1735504881 | K98: 1 | M98: 91 | N98: 3 | O98: 1 | P98: 29 | Q98: 22 | W98: 90 | X98: 0 | Y98: 90 | Z98: 0
G99: 92 | H99: 0.4104909714 | I99: 0 | J99: 0.7960000542 | K99: 0 | M99: 92 | N99: 3 | O99: 2 | P99: 35 | Q99: 19 | W99: 91 | X99: 0 | Y99: 91 | Z99: 0
G100: 93 | H100: 0.3685959877 | I100: 0 | J100: 0.474790782 | K100: 0 | M100: 93 | N100: 4 | O100: 1 | P100: 22 | Q100: 22 | W100: 92 | X100: 0 | Y100: 92 | Z100: 0
G101: 94 | H101: 0.636152215 | I101: 0 | J101: 0.1526533593 | K101: 1 | M101: 94 | N101: 4 | O101: 2 | P101: 34 | Q101: 18 | W101: 93 | X101: 0 | Y101: 93 | Z101: 0
G102: 95 | H102: 0.1015598467 | I102: 1 | J102: 0.9056537232 | K102: 0 | M102: 95 | N102: 4 | O102: 2 | P102: 33 | Q102: 14 | W102: 94 | X102: 0 | Y102: 94 | Z102: 0
G103: 96 | H103: 0.06338572683 | I103: 1 | J103: 0.2126710937 | K103: 0 | M103: 96 | N103: 1 | O103: 2 | P103: 29 | Q103: 18 | W103: 95 | X103: 0 | Y103: 95 | Z103: 0
G104: 97 | H104: 0.3356942589 | I104: 0 | J104: 0.8130243666 | K104: 0 | M104: 97 | N104: 3 | O104: 1 | P104: 25 | Q104: 23 | W104: 96 | X104: 0 | Y104: 96 | Z104: 0
G105: 98 | H105: 0.5720987538 | I105: 0 | J105: 0.6428262485 | K105: 0 | M105: 98 | N105: 4 | O105: 0 | P105: 26 | Q105: 18 | W105: 97 | X105: 0 | Y105: 97 | Z105: 0
G106: 99 | H106: 0.6657023065 | I106: 0 | J106: 0.03702416948 | K106: 1 | M106: 99 | N106: 1 | O106: 2 | P106: 32 | Q106: 15 | W106: 98 | X106: 0 | Y106: 98 | Z106: 0
G107: 100 | H107: 0.7028849459 | I107: 0 | J107: 0.3714121608 | K107: 0 | M107: 100 | N107: 4 | O107: 0 | P107: 32 | Q107: 21 | W107: 99 | X107: 0 | Y107: 99 | Z107: 0
J108: Survivors | K108: Births | M108: 101 | N108: 3 | O108: 2 | P108: 24 | Q108: 18 | W108: 100 | X108: 0 | Y108: 100 | Z108: 0
I109: Totals | J109: =SUM(I8:I107) -> 25 | K109: =SUM(K8:K107) -> 19 | M109: 102 | N109: 3 | O109: 5 | P109: 31 | Q109: 21
M110: 103 | N110: 4 | O110: 3 | P110: 33 | Q110: 27
M111: 104 | N111: 2 | O111: 0 | P111: 31 | Q111: 20
M112: 105 | N112: 3 | O112: 1 | P112: 30 | Q112: 17
M113: 106 | N113: 5 | O113: 1 | P113: 33 | Q113: 21
M114: 107 | N114: 1 | O114: 1 | P114: 24 | Q114: 17
M115: 108 | N115: 4 | O115: 6 | P115: 34 | Q115: 26
M116: 109 | N116: 3 | O116: 3 | P116: 30 | Q116: 10
M117: 110 | N117: 2 | O117: 1 | P117: 34 | Q117: 20
M118: 111 | N118: 2 | O118: 2 | P118: 33 | Q118: 20
M119: 112 | N119: 2 | O119: 3 | P119: 31 | Q119: 19
M120: 113 | N120: 3 | O120: 1 | P120: 28 | Q120: 19
M121: 114 | N121: 2 | O121: 2 | P121: 29 | Q121: 18
M122: 115 | N122: 2 | O122: 2 | P122: 22 | Q122: 14
M123: 116 | N123: 3 | O123: 4 | P123: 31 | Q123: 17
M124: 117 | N124: 3 | O124: 5 | P124: 33 | Q124: 18
M125: 118 | N125: 2 | O125: 3 | P125: 33 | Q125: 26
M126: 119 | N126: 3 | O126: 1 | P126: 28 | Q126: 25
M127: 120 | N127: 2 | O127: 1 | P127: 30 | Q127: 22
M128: 121 | N128: 2 | O128: 3 | P128: 31 | Q128: 21
M129: 122 | N129: 2 | O129: 0 | P129: 26 | Q129: 21
M130: 123 | N130: 5 | O130: 0 | P130: 27 | Q130: 17
M131: 124 | N131: 1 | O131: 2 | P131: 27 | Q131: 15
M132: 125 | N132: 7 | O132: 1 | P132: 36 | Q132: 15
M133: 126 | N133: 2 | O133: 3 | P133: 43 | Q133: 24
M134: 127 | N134: 3 | O134: 1 | P134: 30 | Q134: 25
M135: 128 | N135: 3 | O135: 1 | P135: 33 | Q135: 20
M136: 129 | N136: 4 | O136: 3 | P136: 29 | Q136: 16
M137: 130 | N137: 3 | O137: 3 | P137: 34 | Q137: 21
M138: 131 | N138: 2 | O138: 0 | P138: 30 | Q138: 16
M139: 132 | N139: 2 | O139: 2 | P139: 28 | Q139: 16
M140: 133 | N140: 2 | O140: 1 | P140: 22 | Q140: 22
M141: 134 | N141: 3 | O141: 2 | P141: 29 | Q141: 20
M142: 135 | N142: 3 | O142: 0 | P142: 24 | Q142: 20
M143: 136 | N143: 1 | O143: 2 | P143: 32 | Q143: 24
M144: 137 | N144: 4 | O144: 3 | P144: 37 | Q144: 23
M145: 138 | N145: 3 | O145: 2 | P145: 24 | Q145: 18
M146: 139 | N146: 1 | O146: 2 | P146: 33 | Q146: 11
M147: 140 | N147: 2 | O147: 3 | P147: 33 | Q147: 19
M148: 141 | N148: 2 | O148: 2 | P148: 28 | Q148: 11
M149: 142 | N149: 3 | O149: 1 | P149: 28 | Q149: 23
M150: 143 | N150: 1 | O150: 0 | P150: 26 | Q150: 22
M151: 144 | N151: 2 | O151: 2 | P151: 36 | Q151: 21
M152: 145 | N152: 0 | O152: 4 | P152: 33 | Q152: 25
M153: 146 | N153: 4 | O153: 3 | P153: 41 | Q153: 16
M154: 147 | N154: 5 | O154: 4 | P154: 33 | Q154: 18
M155: 148 | N155: 1 | O155: 5 | P155: 22 | Q155: 16
M156: 149 | N156: 1 | O156: 1 | P156: 35 | Q156: 16
M157: 150 | N157: 3 | O157: 4 | P157: 35 | Q157: 19
M158: 151 | N158: 5 | O158: 1 | P158: 23 | Q158: 18
M159: 152 | N159: 1 | O159: 4 | P159: 36 | Q159: 13
M160: 153 | N160: 4 | O160: 0 | P160: 29 | Q160: 22
M161: 154 | N161: 7 | O161: 1 | P161: 27 | Q161: 18
M162: 155 | N162: 3 | O162: 4 | P162: 18 | Q162: 17
M163: 156 | N163: 0 | O163: 1 | P163: 42 | Q163: 27
M164: 157 | N164: 1 | O164: 1 | P164: 31 | Q164: 17
M165: 158 | N165: 4 | O165: 0 | P165: 30 | Q165: 24
M166: 159 | N166: 1 | O166: 1 | P166: 29 | Q166: 24
M167: 160 | N167: 4 | O167: 0 | P167: 28 | Q167: 26
M168: 161 | N168: 4 | O168: 0 | P168: 30 | Q168: 22
M169: 162 | N169: 3 | O169: 1 | P169: 29 | Q169: 13
M170: 163 | N170: 2 | O170: 2 | P170: 28 | Q170: 21
M171: 164 | N171: 2 | O171: 1 | P171: 33 | Q171: 19
M172: 165 | N172: 2 | O172: 1 | P172: 38 | Q172: 18
M173: 166 | N173: 1 | O173: 4 | P173: 29 | Q173: 24
M174: 167 | N174: 3 | O174: 2 | P174: 29 | Q174: 14
M175: 168 | N175: 2 | O175: 3 | P175: 32 | Q175: 26
M176: 169 | N176: 2 | O176: 1 | P176: 32 | Q176: 20
M177: 170 | N177: 3 | O177: 4 | P177: 38 | Q177: 23
M178: 171 | N178: 2 | O178: 3 | P178: 26 | Q178: 19
M179: 172 | N179: 3 | O179: 2 | P179: 25 | Q179: 17
M180: 173 | N180: 3 | O180: 0 | P180: 37 | Q180: 21
M181: 174 | N181: 3 | O181: 3 | P181: 27 | Q181: 23
M182: 175 | N182: 4 | O182: 4 | P182: 26 | Q182: 23
M183: 176 | N183: 3 | O183: 2 | P183: 41 | Q183: 20
M184: 177 | N184: 2 | O184: 3 | P184: 30 | Q184: 14
M185: 178 | N185: 1 | O185: 1 | P185: 34 | Q185: 23
M186: 179 | N186: 1 | O186: 0 | P186: 27 | Q186: 23
M187: 180 | N187: 2 | O187: 4 | P187: 34 | Q187: 9
M188: 181 | N188: 3 | O188: 1 | P188: 34 | Q188: 22
M189: 182 | N189: 1 | O189: 1 | P189: 22 | Q189: 24
M190: 183 | N190: 3 | O190: 0 | P190: 29 | Q190: 19
M191: 184 | N191: 3 | O191: 1 | P191: 30 | Q191: 25
M192: 185 | N192: 1 | O192: 0 | P192: 26 | Q192: 20
M193: 186 | N193: 0 | O193: 3 | P193: 25 | Q193: 21
M194: 187 | N194: 3 | O194: 1 | P194: 28 | Q194: 25
M195: 188 | N195: 3 | O195: 1 | P195: 30 | Q195: 16
M196: 189 | N196: 5 | O196: 1 | P196: 28 | Q196: 20
M197: 190 | N197: 3 | O197: 1 | P197: 33 | Q197: 22
M198: 191 | N198: 3 | O198: 3 | P198: 33 | Q198: 26
M199: 192 | N199: 4 | O199: 0 | P199: 24 | Q199: 23
M200: 193 | N200: 2 | O200: 2 | P200: 23 | Q200: 27
... 10 more rows

Sheet Env stoch
A1: ENVIRONMENTAL STOCHASTICITY | F1: Definition: unpredictable variation in environmental conditions (biotic and abiotic)
F2: that can affect populations. | X2: Normal distribution
A3: b | B3: d | C3: R | D3: λ | X3: Mean | Y3: =B7 -> 1.2
A4: 3 | B4: 2.8 | C4: =A4-B4 -> 0.2 | D4: =1+C4 -> 1.2 | X4: SD | Y4: =C7 -> 0.5
A6: N(0) | B6: λ | C6: SD | X6: 0 | Y6: =NORMDIST(X6,$Y$3,$Y$4,FALSE) -> 0.04478906059
A7: 10 | B7: =D4 -> 1.2 | C7: 0.5 | E7: Population model: Nt+1 = λ*Nt | X7: 0.1 | Y7: =NORMDIST(X7,$Y$3,$Y$4,FALSE) -> 0.07094918569
X8: 0.2 | Y8: 0.107981933
B9: Year | X9: 0.3 | Y9: 0.1579003166
A10: Trial | B10: 0 | C10: 1 | D10: 2 | E10: 3 | F10: 4 | G10: 5 | H10: 6 | I10: 7 | J10: 8 | K10: 9 | L10: 10 | M10: 11 | N10: 12 | O10: 13 | P10: 14 | Q10: 15 | R10: 16 | S10: 17 | T10: 18 | U10: 19 | V10: 20 | X10: 0.4 | Y10: 0.2218416694
A11: 1 | B11: =$A$7 -> 10 | C11: =MAX(0,NORMINV(RAND(),$B$7,$C$7)*B11) -> 8.146346853 | D11: =MAX(0,NORMINV(RAND(),$B$7,$C$7)*C11) -> 14.96809638 | E11: 29.58212587 | F11: 44.58471428 | G11: 53.3987213 | H11: 54.92655725 | I11: 49.00623453 | J11: 80.90601253 | K11: 122.8333956 | L11: 145.0357524 | M11: 95.07554247 | N11: 81.96846621 | O11: 111.9515889 | P11: 125.1913845 | Q11: 183.4985629 | R11: 247.1307604 | S11: 243.2011359 | T11: 431.2364333 | U11: 657.187691 | V11: 1001.348144 | X11: 0.5 | Y11: 0.2994549313
A12: 2 | B12: =$A$7 -> 10 | C12: =MAX(0,NORMINV(RAND(),$B$7,$C$7)*B12) -> 6.797901768 | D12: 13.13017026 | E12: 17.28591524 | F12: 20.93971194 | G12: 27.64279686 | H12: 37.23439258 | I12: 48.50390071 | J12: 51.12734078 | K12: 104.0145002 | L12: 140.6613494 | M12: 22.24117451 | N12: 21.88656269 | O12: 41.40698962 | P12: 58.5821092 | Q12: 105.1113647 | R12: 123.2525533 | S12: 196.4229795 | T12: 212.8643605 | U12: 258.2423717 | V12: 377.2965516 | X12: 0.6 | Y12: 0.38837211
A13: 3 | B13: 10 | C13: =MAX(0,NORMINV(RAND(),$B$7,$C$7)*B13) -> 15.3102571 | D13: 12.19473568 | E13: 24.42339912 | F13: 24.15664727 | G13: 10.1370449 | H13: 7.805912569 | I13: 8.295989882 | J13: 10.61053624 | K13: 2.330847383 | L13: 4.935362006 | M13: 2.533285721 | N13: 0.886371236 | O13: 2.281988957 | P13: 4.398522174 | Q13: 6.091868583 | R13: 4.84485227 | S13: 2.618880672 | T13: 2.202074115 | U13: 2.147442675 | V13: 3.559427308 | X13: 0.7 | Y13: 0.483941449
A14: 4 | B14: 10 | C14: =MAX(0,NORMINV(RAND(),$B$7,$C$7)*B14) -> 4.661170772 | D14: 6.259009522 | E14: 8.947410583 | F14: 16.42377701 | G14: 32.42743688 | H14: 52.39052055 | I14: 65.75742758 | J14: 98.6243406 | K14: 99.90258807 | L14: 205.0974334 | M14: 291.8876954 | N14: 22.39033347 | O14: 22.23202313 | P14: 22.56349729 | Q14: 32.58824046 | R14: 33.20534528 | S14: 20.55993979 | T14: 23.14416674 | U14: 42.21083974 | V14: 67.3458645 | X14: 0.8 | Y14: 0.5793831055
A15: 5 | B15: 10 | C15: =MAX(0,NORMINV(RAND(),$B$7,$C$7)*B15) -> 2.951785182 | D15: 5.340462864 | E15: 6.637001419 | F15: 5.505852405 | G15: 3.897228596 | H15: 5.971660022 | I15: 3.100211047 | J15: 4.436974139 | K15: 4.303509584 | L15: 0.2442081661 | M15: 0.4268293148 | N15: 0.7219365579 | O15: 0.5241196312 | P15: 0.6015251219 | Q15: 0.2691852097 | R15: 0.5237183874 | S15: 0.3881721776 | T15: 0.1828664642 | U15: 0.04181101445 | V15: 0.03716501494 | X15: 0.9 | Y15: 0.6664492058
A16: No stoch | B16: 10 | C16: =$B$7*B16 -> 12 | D16: =$B$7*C16 -> 14.4 | E16: 17.28 | F16: 20.736 | G16: 24.8832 | H16: 29.85984 | I16: 35.831808 | J16: 42.9981696 | K16: 51.59780352 | L16: 61.91736422 | M16: 74.30083707 | N16: 89.16100448 | O16: 106.9932054 | P16: 128.3918465 | Q16: 154.0702157 | R16: 184.8842589 | S16: 221.8611107 | T16: 266.2333328 | U16: 319.4799994 | V16: 383.3759992 | X16: 1 | Y16: 0.7365402806
X17: 1.1 | Y17: 0.782085388
J18: Point #3: Environmental stochasticity can have substantial impacts | X18: 1.2 | Y18: 0.7978845608
J19: on population growth over time and influence extinction risk. | X19: 1.3 | Y19: 0.782085388
X20: 1.4 | Y20: 0.7365402806
X21: 1.5 | Y21: 0.6664492058
X22: 1.6 | Y22: 0.5793831055
X23: 1.7 | Y23: 0.483941449
X24: 1.8 | Y24: 0.38837211
X25: 1.9 | Y25: 0.2994549313
X26: 2 | Y26: 0.2218416694
X27: 2.1 | Y27: 0.1579003166
X28: 2.2 | Y28: 0.107981933
X29: 2.3 | Y29: 0.07094918569
X30: 2.4 | Y30: 0.04478906059
X31: 2.5 | Y31: 0.02716593847
